fUST/lending_fUST_20250614
["ID","MTS","AMOUNT","RATE_DAILY","PERIOD"]
[365747725,1749873034849,-1000.0,0.00022587,2]
[365747726,1749873034859,-500.0,0.00022587,2]
[365747727,1749873034869,-1000.0,0.00022587,2]
[365747728,1749873034878,-500.0,0.00022587,2]
[365747729,1749873034888,-1000.0,0.00022587,2]
[365747730,1749873034897,-500.0,0.00022587,2]
[365747731,1749873034907,-500.0,0.00022587,2]
[365747732,1749873034917,-1000.0,0.00022587,2]
[365747733,1749873034927,-500.0,0.00022587,2]
[365747734,1749873034936,-1000.0,0.00022587,2]
[365747735,1749873034946,-500.0,0.00022587,2]
[365747736,1749873034957,-1000.0,0.00022587,2]
[365747737,1749873034967,-500.0,0.00022587,2]
[365747738,1749873034976,-500.0,0.00022587,2]
[365747739,1749873034986,-1000.0,0.00022587,2]
[365747740,1749873034996,-606.0,0.00022623,2]
[365747741,1749873035006,-1750.456,0.00022642,2]
[365747742,1749873035015,-606.0,0.00022653,2]
[365747743,1749873035025,-500.0,0.00022686,2]
[365747744,1749873035035,-1334.3805441,0.00022697,2]
[365747745,1749873035044,-518.0,0.00022701,2]
[365747746,1749873035054,-153.7585254,0.0002274,2]
[365747747,1749873035063,-276.28050142,0.00022752,2]
[365747748,1749873035073,-318.24,0.00022823,10]
[365747749,1749873035082,-460.0,0.00022833,4]
[365747750,1749873035091,-2835.27,0.00022833,4]
[365747751,1749873035101,-549.21,0.00022833,4]
[365747752,1749873035110,-469.67,0.00022833,4]
[365747753,1749873035119,-836.52,0.00022833,4]
[365747754,1749873035128,-460.0,0.00022833,4]
[365747755,1749873035138,-515.28,0.00022833,4]
[365747756,1749873035147,-773.31,0.00022833,4]
[365747757,1749873035157,-460.0,0.00022833,4]
[365747758,1749873035166,-460.0,0.00022833,4]
[365747759,1749873035175,-460.0,0.00022833,4]
[365747760,1749873035186,-460.0,0.00022834,4]
[365747761,1749873035195,-848.54,0.00022834,4]
[365747762,1749873035205,-460.0,0.00022834,4]
[365747763,1749873035214,-396.39254919,0.00022834,4]
[365747764,1749873035224,-460.0,0.00022834,4]
[365747765,1749873035233,-460.0,0.00022834,4]
[365747766,1749873035242,-460.0,0.00022834,4]
[365747767,1749873035251,-460.0,0.00022834,4]
[365747768,1749873035260,-460.0,0.00022834,4]
[365747769,1749873035270,-460.0,0.00022834,4]
[365747770,1749873035279,-870.39,0.00022834,4]
[365747771,1749873035288,-460.0,0.00022834,4]
[365747772,1749873035298,-460.0,0.00022835,2]
[365747773,1749873035307,-500.0,0.00022889,2]
[365747774,1749873035316,-500.0,0.00022889,2]
[365747775,1749873035326,-172.838548,0.00022921,2]
[365747776,1749873035334,-160.0,0.00022999,2]
[365747777,1749873035344,-665.05,0.00023098,3]
[365747778,1749873035353,-1000.0,0.00023105,2]
[365747779,1749873035363,-460.0,0.00023107,4]
[365747780,1749873035372,-2835.27,0.00023107,4]
[365747781,1749873035382,-549.21,0.00023107,4]
[365747782,1749873035391,-469.67,0.00023107,4]
[365747783,1749873035400,-836.52,0.00023107,4]
[365747784,1749873035410,-460.0,0.00023107,4]
[365747785,1749873035420,-515.28,0.00023107,4]
[365747786,1749873035430,-773.31,0.00023107,4]
[365747787,1749873035439,-460.0,0.00023107,4]
[365747788,1749873035448,-460.0,0.00023107,4]
[365747789,1749873035459,-460.0,0.00023108,4]
[365747790,1749873035468,-848.54,0.00023108,4]
[365747791,1749873035477,-460.0,0.00023108,4]
[365747792,1749873035487,-460.0,0.00023108,4]
[365747793,1749873035497,-460.0,0.00023108,4]
[365747794,1749873035509,-460.0,0.00023108,4]
[365747795,1749873035519,-460.0,0.00023108,4]
[365747796,1749873035528,-460.0,0.00023108,4]
[365747797,1749873035539,-870.39,0.00023108,4]
[365747798,1749873035548,-460.0,0.00023108,4]
[365747799,1749873035558,-460.0,0.00023109,2]
[365747800,1749873035567,-1330.11,0.00023125,3]
[365747801,1749873035578,-518.0,0.00023132,2]
[365747802,1749873035587,-5000.0,0.00023135,2]
[365747803,1749873035597,-153.0,0.00023165,2]
[365747804,1749873035607,-153.0,0.00023165,2]
[365747805,1749873035616,-153.0,0.00023165,2]
[365747806,1749873035626,-153.0,0.00023165,2]
[365747807,1749873035636,-153.0,0.00023165,2]
[365747808,1749873035645,-153.0,0.00023165,2]
[365747809,1749873035655,-276.28050142,0.00023171,2]
[365747810,1749873035665,-162.501155,0.00023182,2]
[365747811,1749873035675,-629.12877101,0.00023234,2]
[365747812,1749873035684,-665.05,0.00023272,3]
[365747813,1749873035694,-500.0,0.00023281,2]
[365747814,1749873035703,-5888.0,0.00023282,2]
[365747815,1749873035713,-5888.0,0.00023297,2]
[365747816,1749873035722,-518.0,0.00023302,2]
[365747817,1749873035732,-1795.953565,0.00023304,3]
[365747818,1749873035742,-229.82479369,0.00023371,2]
[365747819,1749873035752,-160.0,0.00023371,2]
[365747820,1749873035762,-12533.30537164,0.00023371,2]
[365747821,1749873035771,-460.0,0.00023381,4]
[365747822,1749873035780,-2835.27,0.00023381,4]
[365747823,1749873035790,-549.21,0.00023381,4]
[365747824,1749873035801,-469.67,0.00023381,4]
[365747825,1749873035810,-836.52,0.00023381,4]
[365747826,1749873035820,-579.72,0.00023381,4]
[365747827,1749873035829,-515.28,0.00023381,4]
[365747828,1749873035839,-773.31,0.00023381,4]
[365747829,1749873035849,-460.0,0.00023381,4]
[365747830,1749873035858,-460.0,0.00023381,4]
[365747831,1749873035867,-460.0,0.00023382,4]
[365747832,1749873035878,-848.54,0.00023382,4]
[365747833,1749873035888,-460.0,0.00023382,4]
[365747834,1749873035897,-460.0,0.00023382,4]
[365747835,1749873035906,-460.0,0.00023382,4]
[365747836,1749873035915,-460.0,0.00023382,4]
[365747837,1749873035925,-460.0,0.00023382,4]
[365747838,1749873035934,-460.0,0.00023382,4]
[365747839,1749873035943,-870.39,0.00023382,4]
[365747840,1749873035958,-460.0,0.00023382,4]
[365747841,1749873035970,-460.0,0.00023383,2]
[365747842,1749873035979,-775.938466,0.000234,7]
[365747843,1749873035989,-775.938466,0.000234,7]
[365747844,1749873035998,-1054.32,0.000234,7]
[365747845,1749873036007,-500.0,0.00023437,2]
[365747846,1749873036016,-507.470537,0.00023437,3]
[365747847,1749873036025,-176.9641878,0.00023452,2]
[365747848,1749873036035,-176.96418779,0.00023452,2]
[365747849,1749873036044,-176.96418779,0.00023452,2]
[365747850,1749873036054,-2117.84708318,0.00023478,2]
[365747851,1749873036063,-368.67371697,0.00023486,2]
[365747852,1749873036072,-2117.84708315,0.00023534,2]
[365747853,1749873036082,-200.0,0.00023561,4]
[365747854,1749873036091,-152.3970261,0.00023561,4]
[365747855,1749873036102,-800.0,0.0002357,2]
[365747856,1749873036111,-200.0,0.00023572,2]
[365747857,1749873036120,-964.355,0.00023578,2]
[365747858,1749873036129,-653.0,0.00023578,2]
[365747859,1749873036147,-2160.0,0.00023578,2]
[365747860,1749873036156,-405.0,0.00023578,2]
[365747861,1749873036166,-405.0,0.00023578,2]
[365747862,1749873036175,-2117.84708315,0.00023589,2]
[365747863,1749873036184,-276.28050142,0.0002359,2]
[365747864,1749873036193,-2117.84708315,0.00023645,2]
[365747865,1749873036203,-510.97157192,0.00023653,2]
[365747866,1749873036213,-800.0,0.00023655,2]
[365747867,1749873036222,-460.0,0.00023655,4]
[365747868,1749873036231,-2835.27,0.00023655,4]
[365747869,1749873036240,-549.21,0.00023655,4]
[365747870,1749873036249,-469.67,0.00023655,4]
[365747871,1749873036259,-836.52,0.00023655,4]
[365747872,1749873036268,-515.28,0.00023655,4]
[365747873,1749873036278,-773.31,0.00023655,4]
[365747874,1749873036298,-460.0,0.00023655,4]
[365747875,1749873036312,-237.98058756,0.00023655,4]
[365747876,1749873036322,-460.0,0.00023656,4]
[365747877,1749873036331,-848.54,0.00023656,4]
[365747878,1749873036340,-362.79426522,0.00023656,4]
[365747879,1749873036351,-460.0,0.00023656,4]
[365747880,1749873036360,-460.0,0.00023656,4]
[365747881,1749873036369,-469.64,0.00023656,4]
[365747882,1749873036379,-460.0,0.00023656,4]
[365747883,1749873036388,-460.0,0.00023656,4]
[365747884,1749873036397,-870.39,0.00023656,4]
[365747885,1749873036406,-460.0,0.00023656,4]
[365747886,1749873036415,-460.0,0.00023657,2]
[365747887,1749873036424,-581.61621179,0.00023662,2]
[365747888,1749873036434,-200.0,0.00023664,2]
[365747889,1749873036443,-18665.72432283,0.0002368,2]
[365747890,1749873036452,-5000.0,0.00023683,2]
[365747891,1749873036461,-200.0,0.00023689,2]
[365747892,1749873036470,-151.0,0.000237,5]
[365747893,1749873036479,-151.0,0.000237,8]
[365747894,1749873036489,-151.0,0.000237,8]
[365747895,1749873036501,-151.0,0.000237,5]
[365747896,1749873036511,-150.0,0.000237,30]
[365747897,1749873036520,-150.22676,0.000237,2]
[365747898,1749873036530,-167.63761846,0.000237,2]
[365747899,1749873036540,-2117.84708315,0.000237,2]
[365747900,1749873036550,-164.28577677,0.000237,4]
[365747901,1749873036560,-164.28577677,0.000237,4]
[365747902,1749873036570,-164.28577677,0.000237,4]
[365747903,1749873036579,-164.28577677,0.000237,4]
[365747904,1749873036588,-164.28,0.000237,4]
[365747905,1749873036598,-159.72228297,0.000237,4]
[365747906,1749873036607,-159.72228297,0.000237,4]
[365747907,1749873036617,-159.72228297,0.000237,4]
[365747908,1749873036627,-159.72228297,0.000237,4]
[365747909,1749873036637,-159.72228297,0.000237,4]
[365747910,1749873036646,-159.72228297,0.000237,4]
[365747911,1749873036656,-159.72228297,0.000237,4]
[365747912,1749873036666,-159.72228297,0.000237,4]
[365747913,1749873036676,-159.72228297,0.000237,4]
[365747914,1749873036685,-159.72228297,0.000237,4]
[365747915,1749873036695,-159.72228297,0.000237,4]
[365747916,1749873036704,-159.72,0.000237,4]
[365747917,1749873036714,-775.938466,0.0002371,7]
[365747918,1749873036723,-775.938466,0.0002371,7]
[365747919,1749873036732,-151.0,0.00023717,7]
[365747920,1749873036742,-3534.54,0.00023738,2]
[365747921,1749873036751,-160.0,0.0002375,3]
[365747922,1749873036760,-161.10336283,0.0002375,5]
[365747923,1749873036770,-500.0,0.00023773,2]
[365747924,1749873036779,-500.14996127,0.00023773,2]
[365747925,1749873036789,-500.0,0.00023773,2]
[365747926,1749873036798,-500.0,0.00023773,2]
[365747927,1749873036808,-502.24838688,0.00023773,2]
[365747928,1749873036817,-501.18193787,0.00023773,2]
[365747929,1749873036826,-500.0,0.00023773,2]
[365747930,1749873036835,-500.0,0.00023773,2]
[365747931,1749873036846,-500.0,0.00023773,2]
[365747932,1749873036855,-500.0,0.00023773,2]
[365747933,1749873036864,-514.33,0.00023773,2]
[365747934,1749873036873,-151.99757932,0.00023773,2]
[365747935,1749873036882,-501.05540923,0.00023773,2]
[365747936,1749873036892,-500.0,0.00023773,2]
[365747937,1749873036901,-504.81255339,0.00023773,2]
[365747938,1749873036911,-500.0,0.00023773,2]
[365747939,1749873036920,-500.0,0.00023773,2]
[365747940,1749873036929,-500.0,0.00023773,2]
[365747941,1749873036939,-600.0,0.00023773,2]
[365747942,1749873036948,-500.0,0.00023773,2]
[365747943,1749873036958,-500.98830008,0.00023773,2]
[365747944,1749873036967,-500.0,0.00023773,2]
[365747945,1749873036977,-503.95759665,0.00023773,2]
[365747946,1749873036988,-500.0,0.00023773,2]
[365747947,1749873036997,-501.03395832,0.00023773,2]
[365747948,1749873037007,-501.36108504,0.00023773,2]
[365747949,1749873037017,-500.0,0.00023773,2]
[365747950,1749873037027,-500.0,0.00023773,2]
[365747951,1749873037037,-501.78739343,0.00023773,2]
[365747952,1749873037046,-501.41379653,0.00023773,2]
[365747953,1749873037057,-501.06854497,0.00023773,2]
[365747954,1749873037067,-500.65525425,0.00023773,2]
[365747955,1749873037077,-513.4045382,0.00023773,2]
[365747956,1749873037087,-1780.89247371,0.0002378,3]
[365747957,1749873037097,-153.24994292,0.0002378,3]
[365747958,1749873037106,-317.0,0.0002378,3]
[365747959,1749873037115,-323.3754628,0.0002378,3]
[365747960,1749873037124,-151.0,0.0002378,7]
[365747961,1749873037134,-151.0,0.0002378,7]
[365747962,1749873037144,-154.307475,0.0002378,7]
[365747963,1749873037154,-151.0,0.0002378,7]
[365747964,1749873037164,-151.0,0.0002378,7]
[365747965,1749873037174,-40157.73360769,0.0002378,5]
[365747983,1749873038706,-186.68945093,0.00021351,2]
[365747985,1749873038716,-221.0,0.00022577,10]
[365747987,1749873038726,-123.81054907,0.00023281,2]
[365747991,1749873038762,-376.18945093,0.00023281,2]
[365747993,1749873038772,-27.42092526,0.00023281,2]
[365747996,1749873038784,-472.57907474,0.00023281,2]
[365747998,1749873038794,-222.66988008,0.00023281,2]
[365748001,1749873038817,-289.88100974,0.00023281,2]
[365748003,1749873038826,-377.7070254,0.00023281,2]
[365748009,1749873038872,-253.07837514,0.00023281,2]
[365748011,1749873038881,-500.0,0.00023281,2]
[365748013,1749873038891,-500.0,0.00023281,2]
[365748015,1749873038900,-160.0,0.00023352,2]
[365748017,1749873038910,-152.636,0.00023578,2]
[365748019,1749873038919,-478190.33011226,0.0002378,5]
[365748021,1749873038928,-151.0,0.0002378,7]
[365748023,1749873038938,-213.28201367,0.0002378,3]
[365748025,1749873038947,-151.0,0.0002378,7]
[365748027,1749873038957,-151.0,0.0002378,7]
[365748029,1749873038966,-151.0,0.0002378,7]
[365748031,1749873038975,-151.0,0.0002378,7]
[365748033,1749873038984,-775.938466,0.0002378,7]
[365748035,1749873038993,-775.938466,0.0002378,7]
[365748037,1749873039003,-775.938466,0.0002378,7]
[365748039,1749873039012,-775.938466,0.0002378,7]
[365748041,1749873039021,-1745.0,0.0002378,3]
[365748043,1749873039031,-151.0,0.0002378,3]
[365748045,1749873039040,-1745.0,0.0002378,3]
[365748047,1749873039049,-151.0,0.0002378,3]
[365748049,1749873039058,-166.0,0.0002378,3]
[365748051,1749873039068,-1745.0,0.0002378,3]
[365748053,1749873039077,-166.0,0.0002378,3]
[365748055,1749873039087,-243.6925415,0.0002378,3]
[365748057,1749873039096,-1745.0,0.0002378,3]
[365748059,1749873039105,-172.0,0.0002378,3]
[365748061,1749873039114,-1745.0,0.0002378,3]
[365748063,1749873039124,-1745.0,0.0002378,3]
[365748065,1749873039133,-1745.0,0.0002378,3]
[365748067,1749873039143,-1745.0,0.0002378,3]
[365748069,1749873039152,-1745.0,0.0002378,3]
[365748071,1749873039161,-1745.0,0.0002378,3]
[365748073,1749873039171,-1745.0,0.0002378,3]
[365748075,1749873039180,-1745.0,0.0002378,3]
[365748077,1749873039190,-151.0,0.0002378,3]
[365748079,1749873039200,-1745.0,0.0002378,3]
[365748081,1749873039209,-151.0,0.0002378,3]
[365748083,1749873039218,-1745.0,0.0002378,3]
[365748085,1749873039228,-151.0,0.0002378,3]
[365748087,1749873039237,-1745.0,0.0002378,3]
[365748089,1749873039248,-151.0,0.0002378,3]
[365748091,1749873039257,-1745.0,0.0002378,3]
[365748093,1749873039267,-317.0,0.0002378,3]
[365748095,1749873039276,-151.0,0.0002378,3]
[365748097,1749873039286,-1745.0,0.0002378,3]
[365748099,1749873039295,-317.0,0.0002378,3]
[365748101,1749873039304,-151.0,0.0002378,3]
[365748103,1749873039314,-1745.0,0.0002378,3]
[365748105,1749873039323,-317.0,0.0002378,3]
[365748107,1749873039332,-1745.0,0.0002378,3]
[365748109,1749873039342,-151.0,0.0002378,3]
[365748111,1749873039352,-1745.0,0.0002378,3]
[365748113,1749873039361,-317.0,0.0002378,3]
[365748115,1749873039371,-151.0,0.0002378,3]
[365748117,1749873039381,-1745.0,0.0002378,3]
[365748119,1749873039390,-317.0,0.0002378,3]
[365748121,1749873039399,-151.0,0.0002378,3]
[365748123,1749873039409,-1745.0,0.0002378,3]
[365748124,1749873039418,-317.0,0.0002378,3]
[365748125,1749873039428,-1745.0,0.0002378,3]
[365748126,1749873039437,-151.0,0.0002378,3]
[365748127,1749873039447,-317.0,0.0002378,3]
[365748128,1749873039456,-151.0,0.0002378,3]
[365748129,1749873039466,-1745.0,0.0002378,3]
[365748130,1749873039475,-317.0,0.0002378,3]
[365748131,1749873039485,-151.0,0.0002378,3]
[365748132,1749873039496,-1745.0,0.0002378,3]
[365748133,1749873039507,-317.0,0.0002378,3]
[365748134,1749873039516,-151.0,0.0002378,3]
[365748135,1749873039527,-817.96256108,0.0002378,3]
[365748136,1749873039536,-317.0,0.0002378,3]
[365748137,1749873039546,-151.0,0.0002378,3]
[365748138,1749873039556,-317.0,0.0002378,3]
[365748139,1749873039567,-151.0,0.0002378,3]
[365748140,1749873039577,-317.0,0.0002378,3]
[365748141,1749873039587,-151.0,0.0002378,3]
[365748142,1749873039596,-317.0,0.0002378,3]
[365748143,1749873039606,-151.0,0.0002378,3]
[365748144,1749873039615,-151.0,0.0002378,3]
[365748145,1749873039625,-317.0,0.0002378,3]
[365748146,1749873039635,-151.0,0.0002378,3]
[365748147,1749873039645,-317.0,0.0002378,3]
[365748148,1749873039655,-151.0,0.0002378,3]
[365748149,1749873039663,-317.0,0.0002378,3]
[365748150,1749873039672,-317.0,0.0002378,3]
[365748151,1749873039682,-317.0,0.0002378,3]
[365748152,1749873039691,-317.0,0.0002378,3]
[365748153,1749873039700,-317.0,0.0002378,3]
[365748154,1749873039710,-317.0,0.0002378,3]
[365748155,1749873039718,-317.0,0.0002378,3]
[365748156,1749873039727,-317.0,0.0002378,3]
[365748157,1749873039738,-317.0,0.0002378,3]
[365748158,1749873039747,-317.0,0.0002378,3]
[365748159,1749873039755,-317.0,0.0002378,3]
[365748160,1749873039765,-317.0,0.0002378,3]
[365748161,1749873039774,-317.0,0.0002378,3]
[365748162,1749873039783,-317.0,0.0002378,3]
[365748163,1749873039792,-317.0,0.0002378,3]
[365748164,1749873039801,-317.0,0.0002378,3]
[365748165,1749873039810,-317.0,0.0002378,3]
[365748166,1749873039819,-317.0,0.0002378,3]
[365748167,1749873039830,-317.0,0.0002378,3]
[365748168,1749873039839,-317.0,0.0002378,3]
[365748169,1749873039848,-317.0,0.0002378,3]
[365748170,1749873039858,-288.57454196,0.0002378,3]
[365748171,1749873039867,-152.520026,0.0002378,7]
[365748172,1749873039876,-835.41710878,0.0002378,3]
[365748173,1749873039885,-12533.30537164,0.0002378,3]
[365748174,1749873039895,-424.40141186,0.0002378,3]
[365748175,1749873039904,-845.10789306,0.0002378,3]
[365748176,1749873039915,-229.82479369,0.0002378,3]
[365748177,1749873039924,-160.0,0.0002378,3]
[365748178,1749873039933,-1745.0,0.0002378,3]
[365748179,1749873039943,-151.0,0.0002378,3]
[365748180,1749873039952,-1745.0,0.0002378,3]
[365748181,1749873039962,-151.0,0.0002378,3]
[365748182,1749873039972,-1745.0,0.0002378,3]
[365748183,1749873039981,-171.0,0.0002378,3]
[365748184,1749873039991,-151.0,0.0002378,3]
[365748185,1749873040000,-171.0,0.0002378,3]
[365748186,1749873040010,-151.0,0.0002378,3]
[365748187,1749873040019,-160.0,0.0002378,3]
[365748188,1749873040028,-317.0,0.0002378,3]
[365748189,1749873040037,-317.0,0.0002378,3]
[365748190,1749873040046,-317.0,0.0002378,3]
[365748191,1749873040056,-160.0,0.0002378,3]
[365748192,1749873040066,-3000.0,0.0002379,2]
[365748193,1749873040076,-168.0,0.00023794,2]
[365748194,1749873040085,-151.0,0.00023794,7]
[365748195,1749873040095,-151.0,0.00023794,7]
[365748196,1749873040105,-364.640798,0.00023794,7]
[365748197,1749873040114,-364.640798,0.00023794,7]
[365748198,1749873040124,-151.0,0.00023794,7]
[365748199,1749873040133,-151.0,0.00023794,7]
[365748200,1749873040143,-168.282089,0.00023794,7]
[365748201,1749873040152,-168.282089,0.00023794,7]
[365748202,1749873040162,-761.163602,0.00023794,7]
[365748203,1749873040172,-501.91821307,0.00023794,9]
[365748204,1749873040182,-500.0,0.00023794,9]
[365748205,1749873040191,-30610.83320739,0.000238,2]
[365748206,1749873040200,-57716.18159781,0.000238,2]
[365748207,1749873040209,-109158.70083258,0.000238,3]
[365748208,1749873040224,-5508.86943147,0.000238,3]
[365748257,1749873046725,-197.066,0.00023578,2]
[365748258,1749873046734,-242.262,0.00023578,2]
[365748259,1749873046744,-184.16,0.0002379,10]
[365748260,1749873046753,-761.163602,0.00023794,7]
[365748261,1749873046765,-226043.27708257,0.000238,3]
[365748262,1749873046775,-115603.42184511,0.000238,5]
[365748263,1749873046785,-49359.18938086,0.000238,3]
[365748265,1749873162743,846.96766837,0.00024941,60]
[365748266,1749873351322,-186.8069557,0.00021078,2]
[365748267,1749873351345,-193.1930443,0.000213,2]
[365748268,1749873416902,-300.0,0.00021091,2]
[365748269,1749873416923,-17857.0390154,0.00021092,2]
[365748270,1749873416945,-154.9609846,0.000213,2]
[365748271,1749873490471,-300.0,0.00021034,2]
[365748272,1749873490491,-8621.0,0.00021035,2]
[365748273,1749873561166,-3901.0474142,0.00020824,2]
[365748274,1749873561187,-6677.2246079,0.00020911,2]
[365748275,1749873561207,-126.7279779,0.00021034,2]
[365748277,1749873697736,-5000.0,0.00020616,2]
[365748278,1749873697758,-573.95064,0.00020755,2]
[365748279,1749873697780,-500.0,0.00020824,2]
[365748280,1749873697801,-500.0,0.00020824,2]
[365748281,1749873697822,-500.0,0.00020824,2]
[365748282,1749873697842,-300.0,0.00021033,2]
[365748283,1749873697863,-300.0,0.00021033,2]
[365748284,1749873697883,-300.0,0.00021034,2]
[365748285,1749873697906,-300.0,0.00021034,2]
[365748286,1749873697927,-300.0,0.00021034,2]
[365748287,1749873697947,-6989.04936,0.00021035,2]
[365748288,1749873761690,-4462.67,0.00020824,2]
[365748289,1749873761715,-300.0,0.00020884,2]
[365748290,1749873761736,-237.33,0.00020885,2]
[365748291,1749873869179,162.554227,0.00013699,2]
[365748293,1749873951123,-223.42119237,0.00020259,2]
[365748294,1749873951147,-806.39530667,0.00020675,2]
[365748295,1749873966347,155.4416066,0.00018992,2]
[365748296,1749874038183,-4193.60469333,0.00020675,2]
[365748297,1749874038205,-195.7999762,0.00020783,2]
[365748298,1749874038228,-300.0,0.00020883,2]
[365748299,1749874038250,-300.0,0.00020884,2]
[365748300,1749874038271,-300.0,0.00020884,2]
[365748301,1749874038291,-300.0,0.00020884,2]
[365748302,1749874038313,-300.0,0.00020884,2]
[365748303,1749874038334,-1041.74601909,0.00020885,2]
[365748304,1749874043103,-1692.17077851,0.00020885,2]
[365748307,1749874158663,168.03110711,6.8e-07,2]
[365748308,1749874158772,168.03110711,6.8e-07,2]
[365748344,1749874231793,-213.3145634,0.00020319,2]
[365748346,1749874231802,-300.0,0.00020884,2]
[365748348,1749874231812,-2206.6594372,0.00020885,2]
[365748357,1749874231890,-18230.1961802,0.00020885,2]
[365748360,1749874231900,-167.86705713,0.00020995,2]
[365748361,1749874231913,-840.7267086,0.00021035,2]
[365748364,1749874231923,-460.0,0.00021095,4]
[365748366,1749874231932,-460.0,0.00021095,4]
[365748368,1749874231942,-460.0,0.00021095,4]
[365748369,1749874231951,-460.0,0.00021095,4]
[365748372,1749874231960,-460.0,0.00021095,4]
[365748373,1749874231969,-660.56,0.00021095,4]
[365748375,1749874231979,-460.0,0.00021095,4]
[365748377,1749874231988,-460.0,0.00021095,4]
[365748379,1749874231997,-460.0,0.00021095,4]
[365748381,1749874232006,-460.0,0.00021095,4]
[365748383,1749874232015,-460.0,0.00021095,4]
[365748387,1749874232033,-487.00618054,0.00021095,4]
[365748390,1749874232044,-460.0,0.00021095,4]
[365748393,1749874232054,-460.0,0.00021095,4]
[365748396,1749874232064,-460.0,0.00021095,4]
[365748399,1749874232074,-460.0,0.00021095,4]
[365748402,1749874232083,-460.0,0.00021095,4]
[365748404,1749874232093,-483.89665395,0.00021095,4]
[365748406,1749874232103,-460.0,0.00021095,4]
[365748409,1749874232112,-617.26,0.00021095,4]
[365748411,1749874232121,-460.0,0.00021095,4]
[365748413,1749874232131,-460.0,0.00021095,4]
[365748415,1749874232141,-460.0,0.00021095,4]
[365748417,1749874232151,-460.0,0.00021095,4]
[365748419,1749874232160,-460.0,0.00021095,4]
[365748421,1749874232170,-645.5,0.00021095,4]
[365748423,1749874232180,-460.0,0.00021095,4]
[365748424,1749874232189,-598.46,0.00021095,4]
[365748426,1749874232199,-460.0,0.00021095,4]
[365748428,1749874232208,-460.0,0.00021095,4]
[365748430,1749874232218,-460.0,0.00021095,4]
[365748432,1749874232227,-460.0,0.00021095,4]
[365748434,1749874232236,-478.55,0.00021095,4]
[365748436,1749874232245,-460.0,0.00021095,4]
[365748437,1749874232255,-460.0,0.00021095,4]
[365748438,1749874232263,-1152.8463866,0.00021095,2]
[365748440,1749874232273,-15936.79822,0.00021368,2]
[365748442,1749874232282,-460.0,0.00021369,4]
[365748444,1749874232292,-660.56,0.00021369,4]
[365748446,1749874232301,-460.0,0.00021369,4]
[365748448,1749874232310,-460.0,0.00021369,4]
[365748449,1749874232320,-460.0,0.00021369,4]
[365748450,1749874232329,-460.0,0.00021369,4]
[365748451,1749874232339,-460.0,0.00021369,4]
[365748452,1749874232348,-460.0,0.00021369,4]
[365748453,1749874232357,-460.0,0.00021369,4]
[365748454,1749874232368,-617.26,0.00021369,4]
[365748455,1749874232378,-460.0,0.00021369,4]
[365748456,1749874232388,-460.0,0.00021369,4]
[365748457,1749874232398,-460.0,0.00021369,4]
[365748458,1749874232407,-645.5,0.00021369,4]
[365748459,1749874232416,-460.0,0.00021369,4]
[365748460,1749874232426,-598.46,0.00021369,4]
[365748461,1749874232435,-460.0,0.00021369,4]